fUST/lending_fUST_20240828
["ID","MTS","AMOUNT","RATE_DAILY","PERIOD"]
[336370270,1724794259155,-500.0,0.0001178,2]
[336370271,1724794259165,-500.0,0.0001178,2]
[336370272,1724794259174,-500.0,0.0001178,2]
[336370273,1724794259184,-500.0,0.0001178,2]
[336370274,1724794259198,-500.0,0.0001178,2]
[336370275,1724794259207,-500.0,0.0001178,2]
[336370276,1724794259217,-500.0,0.0001178,2]
[336370277,1724794259228,-500.0,0.0001178,2]
[336370278,1724794259238,-500.0,0.0001178,2]
[336370279,1724794259248,-500.0,0.0001178,2]
[336370280,1724794259258,-500.0,0.0001178,2]
[336370281,1724794259267,-500.0,0.0001178,2]
[336370282,1724794259280,-500.0,0.0001178,2]
[336370283,1724794259289,-500.0,0.0001178,2]
[336370284,1724794259298,-500.0,0.0001178,2]
[336370285,1724794259307,-500.0,0.0001178,2]
[336370286,1724794259317,-500.0,0.0001178,2]
[336370287,1724794259326,-500.0,0.0001178,2]
[336370288,1724794259335,-500.0,0.0001178,2]
[336370289,1724794259345,-500.0,0.0001178,2]
[336370290,1724794259355,-500.0,0.0001178,2]
[336370291,1724794259365,-500.0,0.0001178,2]
[336370292,1724794259374,-420.40481264,0.0001178,2]
[336370293,1724794259384,-501.63632837,0.0001178,2]
[336370294,1724794259393,-500.0,0.0001178,2]
[336370295,1724794259408,-500.0,0.0001178,2]
[336370296,1724794259424,-500.0,0.0001178,2]
[336370297,1724794259436,-500.0,0.0001178,2]
[336370298,1724794259445,-500.0,0.0001178,2]
[336370299,1724794259454,-500.0,0.0001178,2]
[336370300,1724794259463,-500.0,0.0001178,2]
[336370301,1724794259472,-501.08558276,0.0001178,2]
[336370302,1724794259481,-500.0,0.0001178,2]
[336370303,1724794259491,-500.0,0.0001178,2]
[336370304,1724794259501,-500.0,0.0001178,2]
[336370305,1724794259510,-500.0,0.0001178,2]
[336370306,1724794259519,-500.0,0.0001178,2]
[336370307,1724794259529,-500.0,0.0001178,2]
[336370308,1724794259538,-500.0,0.0001178,2]
[336370309,1724794259547,-500.0,0.0001178,2]
[336370310,1724794259558,-500.0,0.0001178,2]
[336370311,1724794259567,-611.68,0.0001178,2]
[336370312,1724794259576,-500.0,0.0001178,2]
[336370313,1724794259586,-500.38079896,0.0001178,2]
[336370314,1724794259595,-500.0,0.0001178,2]
[336370315,1724794259605,-500.0,0.0001178,2]
[336370316,1724794259615,-500.0,0.0001178,2]
[336370317,1724794259624,-500.0,0.0001178,2]
[336370318,1724794259635,-500.0,0.0001178,2]
[336370319,1724794259645,-500.0,0.0001178,2]
[336370320,1724794259659,-500.0,0.0001178,2]
[336370321,1724794259669,-500.0,0.0001178,2]
[336370322,1724794259679,-500.0,0.0001178,2]
[336370323,1724794259688,-500.0,0.0001178,2]
[336370324,1724794259698,-500.0,0.0001178,2]
[336370325,1724794259707,-500.0,0.0001178,2]
[336370326,1724794259716,-500.0,0.0001178,2]
[336370327,1724794259726,-500.0,0.0001178,2]
[336370328,1724794259735,-500.0,0.0001178,2]
[336370329,1724794259744,-500.0,0.0001178,2]
[336370330,1724794259753,-500.0,0.0001178,2]
[336370331,1724794259763,-500.0,0.0001178,2]
[336370332,1724794259772,-500.0,0.0001178,2]
[336370333,1724794259781,-500.0,0.0001178,2]
[336370334,1724794259791,-500.0,0.0001178,2]
[336370335,1724794259800,-500.0,0.0001178,2]
[336370336,1724794259810,-573.89020719,0.0001178,2]
[336370337,1724794259819,-500.0,0.0001178,2]
[336370338,1724794259829,-500.0,0.0001178,2]
[336370339,1724794259838,-500.0,0.0001178,2]
[336370340,1724794259847,-500.0,0.0001178,2]
[336370341,1724794259857,-500.0,0.0001178,2]
[336370342,1724794259867,-500.0,0.0001178,2]
[336370343,1724794259877,-500.0,0.0001178,2]
[336370344,1724794259887,-500.0,0.0001178,2]
[336370345,1724794259900,-500.0,0.0001178,2]
[336370346,1724794259910,-500.0,0.0001178,2]
[336370347,1724794259919,-500.0,0.0001178,2]
[336370348,1724794259929,-500.0,0.0001178,2]
[336370349,1724794259938,-500.0,0.0001178,2]
[336370350,1724794259948,-500.0,0.0001178,2]
[336370351,1724794259957,-490.10087853,0.0001178,2]
[336370352,1724794259966,-500.0,0.0001178,2]
[336370353,1724794259976,-500.0,0.0001178,2]
[336370354,1724794259985,-500.0,0.0001178,2]
[336370355,1724794259994,-500.0,0.0001178,2]
[336370356,1724794260004,-500.0,0.0001178,2]
[336370357,1724794260013,-500.0,0.0001178,2]
[336370358,1724794260022,-500.0,0.0001178,2]
[336370359,1724794260032,-502.6544263,0.0001178,2]
[336370360,1724794260042,-500.0,0.0001178,2]
[336370361,1724794260051,-500.0,0.0001178,2]
[336370362,1724794260061,-500.0,0.0001178,2]
[336370363,1724794260071,-500.0,0.0001178,2]
[336370364,1724794260080,-416.55,0.0001178,2]
[336370365,1724794260090,-527.61979863,0.0001178,2]
[336370366,1724794260099,-500.0,0.0001178,2]
[336370367,1724794260109,-500.0,0.0001178,2]
[336370368,1724794260119,-500.0,0.0001178,2]
[336370369,1724794260129,-170.564818,0.0001178,2]
[336370370,1724794260139,-500.0,0.0001178,2]
[336370371,1724794260153,-151.0,0.0001178,2]
[336370372,1724794260162,-170.564818,0.0001178,2]
[336370373,1724794260172,-500.0,0.0001178,2]
[336370374,1724794260183,-500.0,0.0001178,2]
[336370375,1724794260194,-500.0,0.0001178,2]
[336370376,1724794260306,-500.0,0.0001178,2]
[336370377,1724794260316,-500.0,0.0001178,2]
[336370378,1724794260325,-500.0,0.0001178,2]
[336370379,1724794260334,-500.0,0.0001178,2]
[336370380,1724794260344,-151.0,0.0001178,2]
[336370381,1724794260353,-500.0,0.0001178,2]
[336370382,1724794260362,-512.03056025,0.0001178,2]
[336370383,1724794260371,-500.0,0.0001178,2]
[336370384,1724794260381,-500.0,0.0001178,2]
[336370385,1724794260391,-500.0,0.0001178,2]
[336370386,1724794260404,-500.0,0.0001178,2]
[336370387,1724794260413,-151.0,0.0001178,2]
[336370388,1724794260423,-279.06641,0.0001178,2]
[336370389,1724794260432,-151.0,0.0001178,2]
[336370390,1724794260441,-500.0,0.0001178,2]
[336370391,1724794260450,-279.06641,0.0001178,2]
[336370392,1724794260459,-151.0,0.0001178,2]
[336370393,1724794260468,-500.0,0.0001178,2]
[336370394,1724794260477,-151.0,0.0001178,2]
[336370395,1724794260486,-473.751261,0.0001178,2]
[336370396,1724794260495,-473.751261,0.0001178,2]
[336370397,1724794260504,-500.0,0.0001178,2]
[336370398,1724794260513,-500.0,0.0001178,2]
[336370399,1724794260522,-151.0,0.0001178,2]
[336370400,1724794260531,-500.0,0.0001178,2]
[336370401,1724794260540,-500.0,0.0001178,2]
[336370402,1724794260550,-151.0,0.0001178,2]
[336370403,1724794260559,-500.0,0.0001178,2]
[336370404,1724794260568,-500.0,0.0001178,2]
[336370405,1724794260578,-500.0,0.0001178,2]
[336370406,1724794260587,-500.0,0.0001178,2]
[336370407,1724794260596,-500.0,0.0001178,2]
[336370408,1724794260606,-500.0,0.0001178,2]
[336370409,1724794260615,-405.479251,0.0001178,2]
[336370410,1724794260625,-354.171447,0.0001178,2]
[336370411,1724794260635,-354.171447,0.0001178,2]
[336370412,1724794260644,-500.0,0.0001178,2]
[336370413,1724794260656,-151.0,0.0001178,2]
[336370414,1724794260666,-500.0,0.0001178,2]
[336370415,1724794260677,-500.0,0.0001178,2]
[336370416,1724794260687,-359.18300898,0.0001178,2]
[336370417,1724794260697,-500.0,0.0001178,2]
[336370418,1724794260706,-500.0,0.0001178,2]
[336370419,1724794260716,-500.0,0.0001178,2]
[336370420,1724794260725,-500.0,0.0001178,2]
[336370421,1724794260735,-500.0,0.0001178,2]
[336370422,1724794260745,-500.0,0.0001178,2]
[336370423,1724794260754,-364.6,0.0001178,2]
[336370424,1724794260764,-500.0,0.0001178,2]
[336370425,1724794260774,-500.0,0.0001178,2]
[336370426,1724794260783,-500.0,0.0001178,2]
[336370427,1724794260793,-500.0,0.0001178,2]
[336370428,1724794260802,-500.0,0.0001178,2]
[336370429,1724794260812,-500.0,0.0001178,2]
[336370430,1724794260822,-500.0,0.0001178,2]
[336370431,1724794260832,-500.0,0.0001178,2]
[336370432,1724794260841,-500.0,0.0001178,2]
[336370433,1724794260851,-500.0,0.0001178,2]
[336370434,1724794260860,-500.0,0.0001178,2]
[336370435,1724794260870,-438.725675,0.0001178,2]
[336370436,1724794260880,-500.0,0.0001178,2]
[336370437,1724794260890,-500.0,0.0001178,2]
[336370438,1724794260902,-438.725675,0.0001178,2]
[336370439,1724794260912,-151.0,0.0001178,2]
[336370440,1724794260922,-500.0,0.0001178,2]
[336370441,1724794260931,-695.18,0.0001178,2]
[336370442,1724794260940,-500.0,0.0001178,2]
[336370443,1724794260949,-500.0,0.0001178,2]
[336370444,1724794260959,-500.0,0.0001178,2]
[336370445,1724794260969,-500.0,0.0001178,2]
[336370446,1724794260979,-500.0,0.0001178,2]
[336370447,1724794260988,-500.0,0.0001178,2]
[336370448,1724794260998,-500.0,0.0001178,2]
[336370449,1724794261007,-500.0,0.0001178,2]
[336370450,1724794261017,-1334.27,0.0001178,2]
[336370451,1724794261026,-151.0,0.0001178,2]
[336370452,1724794261036,-318.22419931,0.0001178,2]
[336370453,1724794261046,-500.0,0.0001178,2]
[336370454,1724794261055,-500.0,0.0001178,2]
[336370455,1724794261064,-500.0,0.0001178,2]
[336370456,1724794261074,-500.0,0.0001178,2]
[336370457,1724794261084,-500.0,0.0001178,2]
[336370458,1724794261093,-151.0,0.0001178,2]
[336370459,1724794261102,-500.0,0.0001178,2]
[336370460,1724794261111,-500.0,0.0001178,2]
[336370461,1724794261121,-151.0,0.0001178,2]
[336370462,1724794261130,-500.0,0.0001178,2]
[336370463,1724794261144,-577.456044,0.0001178,2]
[336370464,1724794261166,-500.0,0.0001178,2]
[336370465,1724794261180,-577.456044,0.0001178,2]
[336370466,1724794261199,-500.0,0.0001178,2]
[336370467,1724794261217,-500.0,0.0001178,2]
[336370468,1724794261236,-500.0,0.0001178,2]
[336370469,1724794261252,-1921.01,0.0001178,2]
[336370470,1724794261267,-500.0,0.0001178,2]
[336370471,1724794261285,-500.0,0.0001178,2]
[336370472,1724794261299,-501.48673193,0.0001178,2]
[336370473,1724794261313,-500.0,0.0001178,2]
[336370474,1724794261330,-500.0,0.0001178,2]
[336370475,1724794261347,-151.0,0.0001178,2]
[336370476,1724794261363,-556.886825,0.0001178,2]
[336370477,1724794261374,-556.886825,0.0001178,2]
[336370478,1724794261388,-500.0,0.0001178,2]
[336370479,1724794261406,-500.0,0.0001178,2]
[336370480,1724794261420,-500.0,0.0001178,2]
[336370481,1724794261435,-500.0,0.0001178,2]
[336370482,1724794261449,-940.76,0.0001178,2]
[336370483,1724794261461,-500.0,0.0001178,2]
[336370484,1724794261475,-500.0,0.0001178,2]
[336370485,1724794261488,-500.0,0.0001178,2]
[336370486,1724794261503,-500.0,0.0001178,2]
[336370487,1724794261516,-500.0,0.0001178,2]
[336370488,1724794261529,-500.0,0.0001178,2]
[336370489,1724794261542,-500.0,0.0001178,2]
[336370490,1724794261555,-500.0,0.0001178,2]
[336370491,1724794261568,-500.0,0.0001178,2]
[336370492,1724794261582,-442.445292,0.0001178,2]
[336370493,1724794261595,-442.445292,0.0001178,2]
[336370494,1724794261608,-9837.71,0.0001178,2]
[336370495,1724794261621,-500.0,0.0001178,2]
[336370496,1724794261635,-340.92,0.0001178,2]
[336370497,1724794261650,-503.91135524,0.0001178,2]
[336370498,1724794261668,-1833.22,0.0001178,2]
[336370499,1724794261681,-500.0,0.0001178,2]
[336370500,1724794261694,-189.211397,0.0001178,2]
[336370501,1724794261708,-682.07,0.0001178,2]
[336370502,1724794261722,-500.0,0.0001178,2]
[336370503,1724794261736,-151.0,0.0001178,2]
[336370504,1724794261749,-164.76727121,0.0001178,2]
[336370505,1724794262073,-24.44412579,0.0001178,2]
[336370506,1724794262083,-413.110278,0.0001178,2]
[336370507,1724794262093,-500.0,0.0001178,2]
[336370508,1724794262302,-413.110278,0.0001178,2]
[336370509,1724794262323,-500.0,0.0001178,2]
[336370510,1724794262333,-500.0,0.0001178,2]
[336370511,1724794262342,-151.0,0.0001178,2]
[336370512,1724794262352,-53.9353181,0.0001178,2]
[336370513,1724794262364,-97.0646819,0.0001178,2]
[336370514,1724794262373,-500.0,0.0001178,2]
[336370515,1724794262383,-500.0,0.0001178,2]
[336370516,1724794262392,-500.0,0.0001178,2]
[336370517,1724794262404,-151.0,0.0001178,2]
[336370518,1724794262414,-500.0,0.0001178,2]
[336370519,1724794262423,-500.0,0.0001178,2]
[336370520,1724794262433,-500.0,0.0001178,2]
[336370521,1724794262443,-505.26,0.0001178,2]
[336370522,1724794262452,-500.0,0.0001178,2]
[336370523,1724794262462,-500.0,0.0001178,2]
[336370524,1724794262471,-500.0,0.0001178,2]
[336370525,1724794262481,-417.619382,0.0001178,2]
[336370526,1724794262490,-417.619382,0.0001178,2]
[336370527,1724794262500,-500.0,0.0001178,2]
[336370528,1724794262509,-500.0,0.0001178,2]
[336370529,1724794262519,-7157.01,0.0001178,2]
[336370530,1724794262529,-465.90794464,0.0001178,2]
[336370531,1724794262539,-500.0,0.0001178,2]
[336370532,1724794262550,-500.0,0.0001178,2]
[336370533,1724794262559,-500.0,0.0001178,2]
[336370534,1724794262569,-500.0,0.0001178,2]
[336370535,1724794262581,-500.0,0.0001178,2]
[336370536,1724794262591,-500.0,0.0001178,2]
[336370537,1724794262600,-5501.13,0.0001178,2]
[336370538,1724794262610,-466.128285,0.0001178,2]
[336370539,1724794262619,-500.0,0.0001178,2]
[336370540,1724794262629,-850.71,0.0001178,2]
[336370541,1724794262639,-466.128285,0.0001178,2]
[336370542,1724794262651,-3831.27829434,0.0001178,2]
[336370543,1724794262663,-323.81791502,0.0001178,2]
[336370544,1724794262674,-1814.94379064,0.0001178,2]
[336370545,1724794262683,-949.245539,0.0001178,2]
[336370546,1724794262692,-500.0,0.0001178,2]
[336370547,1724794262701,-1475.07,0.0001178,2]
[336370548,1724794262711,-949.245539,0.0001178,2]
[336370549,1724794262721,-1215.42,0.0001178,2]
[336370550,1724794262730,-500.0,0.0001178,2]
[336370551,1724794262740,-500.0,0.0001178,2]
[336370552,1724794262750,-500.0,0.0001178,2]
[336370553,1724794262760,-1417.59,0.0001178,2]
[336370554,1724794262769,-500.0,0.0001178,2]
[336370555,1724794262778,-151.0,0.0001178,2]
[336370556,1724794262788,-500.0,0.0001178,2]
[336370557,1724794262798,-500.0,0.0001178,2]
[336370558,1724794262808,-500.0,0.0001178,2]
[336370559,1724794262818,-500.0,0.0001178,2]
[336370560,1724794262828,-500.0,0.0001178,2]
[336370561,1724794262839,-500.0,0.0001178,2]
[336370562,1724794262848,-1795.89,0.0001178,2]
[336370563,1724794262857,-500.0,0.0001178,2]
[336370564,1724794262868,-2400.71,0.0001178,2]
[336370565,1724794262878,-250.88513136,0.0001178,2]
[336370566,1724794263060,-249.11486864,0.0001178,2]
[336370567,1724794263071,-246.929458,0.0001178,2]
[336370568,1724794263080,-246.929458,0.0001178,2]
[336370569,1724794263089,-501.47420812,0.0001178,2]
[336370570,1724794263102,-500.0,0.0001178,2]
[336370571,1724794263111,-3561.48,0.0001178,2]
[336370572,1724794263121,-5943.23,0.0001178,2]
[336370573,1724794263131,-151.373132,0.0001178,2]
[336370574,1724794263140,-9106.83,0.0001178,2]
[336370575,1724794263152,-500.0,0.0001178,2]
[336370576,1724794263162,-500.0,0.0001178,2]
[336370577,1724794263171,-500.0,0.0001178,2]
[336370578,1724794263181,-500.0,0.0001178,2]
[336370579,1724794263191,-500.0,0.0001178,2]
[336370580,1724794263203,-479.39471266,0.0001178,2]
[336370581,1724794263213,-7539.38,0.0001178,2]
[336370582,1724794263223,-500.0,0.0001178,2]
[336370583,1724794263232,-26938.75,0.0001178,2]
[336370584,1724794263243,-871.074573,0.0001178,2]
[336370585,1724794263252,-500.0,0.0001178,2]
[336370586,1724794263262,-871.074573,0.0001178,2]
[336370587,1724794263273,-500.0,0.0001178,2]
[336370588,1724794263284,-500.0,0.0001178,2]
[336370589,1724794263293,-500.0,0.0001178,2]
[336370590,1724794263304,-500.0,0.0001178,2]
[336370591,1724794263313,-500.0,0.0001178,2]
[336370592,1724794263323,-500.0,0.0001178,2]
[336370593,1724794263332,-500.0,0.0001178,2]
[336370594,1724794263343,-500.0,0.0001178,2]
[336370595,1724794263352,-500.0,0.0001178,2]
[336370596,1724794263363,-500.0,0.0001178,2]
[336370597,1724794263372,-500.0,0.0001178,2]
[336370598,1724794263382,-500.0,0.0001178,2]
[336370599,1724794263390,-1460.79,0.0001178,2]
[336370600,1724794263400,-833.6,0.0001178,2]
[336370601,1724794263410,-500.0,0.0001178,2]
[336370602,1724794263420,-6571.53,0.0001178,2]
[336370603,1724794263430,-500.0,0.0001178,2]
[336370604,1724794263440,-500.0,0.0001178,2]
[336370605,1724794263450,-500.0,0.0001178,2]
[336370606,1724794263459,-266.094717,0.0001178,2]
[336370607,1724794263469,-500.0,0.0001178,2]
[336370608,1724794263479,-500.0,0.0001178,2]
[336370609,1724794263490,-4781.722826,0.0001178,2]
[336370610,1724794263499,-266.094717,0.0001178,2]
[336370611,1724794263510,-500.0,0.0001178,2]
[336370612,1724794263520,-500.0,0.0001178,2]
[336370613,1724794263532,-151.0,0.0001178,2]
[336370614,1724794263542,-4781.722826,0.0001178,2]
[336370615,1724794263555,-500.0,0.0001178,2]
[336370616,1724794263565,-625.61,0.0001178,2]
[336370617,1724794263574,-185.739696,0.0001178,2]
[336370618,1724794263585,-500.0,0.0001178,2]
[336370619,1724794263594,-1104.016722,0.0001178,2]
[336370620,1724794263604,-500.0,0.0001178,2]
[336370621,1724794263615,-500.0,0.0001178,2]
[336370622,1724794263625,-500.0,0.0001178,2]
[336370623,1724794263637,-151.0,0.0001178,2]
[336370624,1724794263647,-1104.016722,0.0001178,2]
[336370625,1724794263659,-500.0,0.0001178,2]
[336370626,1724794263669,-500.0,0.0001178,2]
[336370627,1724794263679,-500.0,0.0001178,2]
[336370628,1724794263688,-500.0,0.0001178,2]
[336370629,1724794263698,-151.0,0.0001178,2]
[336370630,1724794263708,-499.632707,0.0001178,2]
[336370631,1724794263718,-551.14639096,0.0001178,2]
[336370632,1724794263728,-500.0,0.0001178,2]
[336370633,1724794263738,-790.49,0.0001178,2]
[336370634,1724794263747,-499.632707,0.0001178,2]
[336370635,1724794263757,-500.0,0.0001178,2]
[336370636,1724794263768,-500.0,0.0001178,2]
[336370637,1724794263777,-500.0,0.0001178,2]
[336370638,1724794263787,-500.0,0.0001178,2]
[336370639,1724794263797,-500.0,0.0001178,2]
[336370640,1724794263806,-501.91739402,0.0001178,2]
[336370641,1724794263816,-1658.89,0.0001178,2]
[336370642,1724794263826,-151.0,0.0001178,2]
[336370643,1724794263835,-500.0,0.0001178,2]
[336370644,1724794263845,-500.0,0.0001178,2]
[336370645,1724794263854,-500.0,0.0001178,2]
[336370646,1724794263865,-500.0,0.0001178,2]
[336370647,1724794263876,-393.56114511,0.0001178,2]
[336370648,1724794263886,-500.0,0.0001178,2]
[336370649,1724794263897,-4647.91,0.0001178,2]
[336370650,1724794263909,-2267.23,0.0001178,2]
[336370651,1724794263918,-500.0,0.0001178,2]
[336370652,1724794263929,-3464.35,0.0001178,2]
[336370653,1724794263939,-500.0,0.0001178,2]
[336370654,1724794263951,-500.0,0.0001178,2]
[336370655,1724794263961,-530.37468991,0.0001178,2]
[336370656,1724794263971,-471.23518766,0.0001178,2]
[336370657,1724794263980,-500.0,0.0001178,2]
[336370658,1724794263990,-393.94341834,0.0001178,2]
[336370659,1724794264001,-5459.68,0.0001178,2]
[336370660,1724794264011,-500.0,0.0001178,2]
[336370661,1724794264021,-500.0,0.0001178,2]
[336370662,1724794264031,-904.68737,0.0001178,2]
[336370663,1724794264041,-500.0,0.0001178,2]
[336370664,1724794264052,-904.68737,0.0001178,2]
[336370665,1724794264063,-500.0,0.0001178,2]
[336370666,1724794264072,-500.0,0.0001178,2]
[336370667,1724794264082,-500.0,0.0001178,2]
[336370668,1724794264092,-500.0,0.0001178,2]
[336370669,1724794264102,-500.0,0.0001178,2]
[336370670,1724794264112,-1353.567264,0.0001178,2]
[336370671,1724794264122,-500.0,0.0001178,2]
[336370672,1724794264132,-500.0,0.0001178,2]
[336370673,1724794264142,-161.432437,0.0001178,2]
[336370674,1724794264152,-500.0,0.0001178,2]
[336370675,1724794264162,-500.0,0.0001178,2]
[336370676,1724794264172,-16362.44,0.0001178,2]
[336370677,1724794264181,-258.038089,0.0001178,2]
[336370678,1724794264191,-1353.567264,0.0001178,2]
[336370679,1724794264204,-500.0,0.0001178,2]
[336370680,1724794264214,-500.0,0.0001178,2]
[336370681,1724794264224,-161.432437,0.0001178,2]
[336370682,1724794264233,-500.0,0.0001178,2]
[336370683,1724794264243,-258.038089,0.0001178,2]
[336370684,1724794264253,-500.0,0.0001178,2]
[336370685,1724794264263,-565.87,0.0001178,2]
[336370686,1724794264272,-500.0,0.0001178,2]
[336370687,1724794264283,-298.794073,0.0001178,2]
[336370688,1724794264293,-500.0,0.0001178,2]
[336370689,1724794264303,-500.0,0.0001178,2]
[336370690,1724794264312,-500.87219399,0.0001178,2]
[336370691,1724794264323,-298.794073,0.0001178,2]
[336370692,1724794264333,-500.0,0.0001178,2]
[336370693,1724794264343,-2351.48,0.0001178,2]
[336370694,1724794264353,-500.0,0.00011821,2]
[336370695,1724794264363,-1000.0,0.00011821,2]
[336370696,1724794264372,-415.5650923,0.00011887,2]
[336370697,1724794264381,-422.3621374,0.00011887,2]
[336370698,1724794264392,-30166.95630629,0.000119,5]
[336370699,1724794264402,-151.0,0.000119,2]
[336370700,1724794264412,-405.479251,0.000119,2]
[336370701,1724794264423,-354.171447,0.000119,2]
[336370702,1724794264432,-354.171447,0.000119,2]
[336370703,1724794264442,-220.188812,0.000119,2]
[336370704,1724794264451,-151.0,0.000119,2]
[336370705,1724794264461,-151.0,0.000119,2]
[336370706,1724794264471,-151.0,0.000119,2]
[336370707,1724794264481,-151.0,0.000119,2]
[336370708,1724794264491,-577.456044,0.000119,2]
[336370709,1724794264500,-577.456044,0.000119,2]
[336370710,1724794264511,-556.886825,0.000119,2]
[336370711,1724794264520,-556.886825,0.000119,2]
[336370712,1724794264532,-442.445292,0.000119,2]
[336370713,1724794264542,-442.445292,0.000119,2]
[336370714,1724794264552,-189.211397,0.000119,2]
[336370715,1724794264563,-151.0,0.000119,2]
[336370716,1724794264573,-189.211397,0.000119,2]
[336370717,1724794264583,-413.110278,0.000119,2]
[336370718,1724794264593,-413.110278,0.000119,2]
[336370719,1724794264603,-153.352911,0.000119,2]
[336370720,1724794264612,-151.0,0.000119,2]
[336370721,1724794264623,-151.0,0.000119,2]
[336370722,1724794264635,-417.619382,0.000119,2]
[336370723,1724794264646,-417.619382,0.000119,2]
[336370724,1724794264658,-466.128285,0.000119,2]
[336370725,1724794264668,-466.128285,0.000119,2]
[336370726,1724794264679,-949.245539,0.000119,2]
[336370727,1724794264689,-949.245539,0.000119,2]
[336370728,1724794264700,-151.0,0.000119,2]
[336370729,1724794264711,-246.929458,0.000119,2]
[336370730,1724794264720,-246.929458,0.000119,2]
[336370731,1724794264732,-558561.53650279,0.000119,2]
[336370732,1724794264779,154.82057491,0.0001026,2]
[336370733,1724794265189,-500.0,0.00010958,2]
[336370734,1724794265204,-115.0,0.00010958,2]
[336370735,1724794265218,-385.0,0.00010958,2]
[336370736,1724794265228,-500.0,0.00010958,2]
[336370737,1724794265237,-500.0,0.00011232,2]
[336370738,1724794265247,-500.0,0.00011506,2]
[336370739,1724794265257,-7395.713,0.000119,2]
[336370740,1724794265271,-2549.99999999,0.000119,2]
[336370741,1724794265545,-12309.89400241,0.000119,2]
[336370742,1724794265668,-1845.47,0.000119,2]
[336370753,1724794763863,409.364086,0.00028493,120]
[336370756,1724794865236,692.5404182,0.0002849,120]
[336370757,1724794865257,1363.31759245,0.0002849,120]
[336370772,1724795246182,-358.18165938,7.911e-05,2]
[336370773,1724795250133,-1786.36575756,7.911e-05,2]
[336370774,1724795250155,-296.13258418,7.954e-05,2]
[336370775,1724795250176,-710.79809043,7.954e-05,2]
[336370776,1724795250197,-207.3264095,8.019e-05,2]
[336370777,1724795250217,-192.00502727,8.019e-05,2]
[336370778,1724795250238,-406.7223026,8.019e-05,2]
[336370779,1724795250259,-611.16,8.019e-05,2]
[336370780,1724795250280,-300.0,8.194e-05,2]
[336370781,1724795250302,-989.6465213,8.195e-05,2]
[336370784,1724795345114,-776.93246543,7.911e-05,2]
[336370785,1724795345137,-301.14816981,7.954e-05,2]
[336370786,1724795345160,-308.87016453,7.954e-05,2]
[336370787,1724795345182,-307.3686335,8.019e-05,2]
[336370788,1724795345205,-14607.86136044,8.195e-05,2]
[336370789,1724795348215,-9302.49211826,8.195e-05,2]
[336370790,1724795348237,-16517.66581286,8.195e-05,2]
[336370791,1724795348260,-2998.9186475,8.521e-05,2]
[336370792,1724795348282,-3808.86730584,8.521e-05,2]
[336370793,1724795348305,-228.68211243,9.524e-05,2]
[336370794,1724795351102,-174.81332427,8.019e-05,2]
[336370795,1724795351125,-718.53531405,9.524e-05,2]
[336370796,1724795351147,-544.46212792,9.933e-05,2]
[336370797,1724795351168,-158.41397952,0.0001,2]